bitfinex-derivatives/quotes_BTCF0:USTF0_20250318
["timestamp","ask_amount","ask_price","bid_price","bid_amount"]
[1742336695452,0.5131311,82366.0,82365.0,0.18611475]
[1742336695756,0.1214311,82366.0,82365.0,0.21661475]
[1742336695957,0.1214697,82367.0,82366.0,0.1214311]
[1742336696155,4e-05,82367.0,82366.0,0.3017911]
[1742336696858,0.121427,82369.0,82368.0,0.1214282]
[1742336697159,0.121427,82369.0,82368.0,0.1847282]
[1742336702258,0.1214254,82370.0,82369.0,0.1821384]
[1742336702550,0.0607097,82374.0,82368.0,0.1847282]
[1742336702551,0.1214221,82373.0,82372.0,0.1214208]
[1742336702756,0.1214221,82373.0,82372.0,0.2399008]
[1742336702957,0.1537221,82373.0,82372.0,0.2399008]
[1742336704653,0.0323,82373.0,82372.0,0.2399008]
[1742336704853,0.0314,82376.0,82375.0,0.1214179]
[1742336707159,0.0314,82376.0,82373.0,0.0607103]
[1742336707160,0.0314,82376.0,82373.0,0.1821297]
[1742336707353,0.1214208,82373.0,82372.0,0.2397008]
[1742336707752,0.1515208,82373.0,82372.0,0.2397008]
[1742336707957,0.1821208,82373.0,82372.0,0.2397008]
[1742336708155,0.1214252,82370.0,82364.0,0.01171174]
[1742336708357,0.1214311,82366.0,82364.0,0.01171174]
[1742336708659,0.1214311,82366.0,82365.0,0.12161475]
[1742336708859,0.1539311,82366.0,82365.0,0.12161475]
[1742336710053,0.1842311,82366.0,82365.0,0.12161475]
[1742336710652,0.1842311,82366.0,82365.0,0.12261475]
[1742336710863,0.1539311,82366.0,82365.0,0.12261475]
[1742336711060,0.1539311,82366.0,82365.0,0.12361475]
[1742336711361,0.0607143,82368.0,82367.0,0.1214296]
[1742336712359,0.0607135,82369.0,82368.0,0.1214282]
[1742336712951,0.1214245,82371.0,82368.0,0.060714]
[1742336713161,0.2154394,82370.0,82369.0,0.1214267]
[1742336713552,0.0940127,82370.0,82369.0,0.1214267]
[1742336714062,0.40497886,82400.0,82399.0,0.1213825]
[1742336714369,0.14479734,82414.0,82402.0,0.0606888]
[1742336714549,0.14479734,82414.0,82407.0,0.3608]
[1742336714754,0.1213692,82408.0,82407.0,0.3608]
[1742336715055,0.0943,82413.0,82407.0,0.3608]
[1742336715365,0.0304,82413.0,82412.0,0.1213633]
[1742336715562,0.1517621,82413.0,82412.0,0.1213633]
[1742336715863,0.1517621,82413.0,82412.0,0.00901267]
[1742336716066,0.1517621,82413.0,82410.0,0.0606824]
[1742336716067,0.1213648,82411.0,82410.0,0.0606824]
[1742336716567,0.1213692,82408.0,82407.0,0.37242509]
[1742336716752,0.1213692,82408.0,82407.0,0.49379579]
[1742336717961,0.1213692,82408.0,82407.0,0.13299579]
[1742336718350,0.1213692,82408.0,82407.0,0.1523707]
[1742336718550,0.1213692,82408.0,82407.0,0.16370046]
[1742336718750,0.1213692,82408.0,82407.0,0.17275775]
[1742336719255,0.0606838,82410.0,82409.0,0.1213678]
[1742336719668,0.1213645,82412.0,82411.0,0.1213633]
[1742336719968,0.0304,82413.0,82412.0,0.1851633]
[1742336719969,0.1517619,82413.0,82412.0,0.1851633]
[1742336720855,0.0304,82413.0,82412.0,0.3040433]
[1742336721068,0.1517619,82413.0,82412.0,0.0638]
[1742336721550,0.1517619,82413.0,82412.0,0.1851633]
[1742336728378,0.1845619,82413.0,82412.0,0.1851633]
[1742336732782,0.1845619,82413.0,82412.0,0.0638]
[1742336733679,0.1845619,82413.0,82412.0,0.18264]
[1742336734474,0.1845619,82413.0,82412.0,0.3040033]
[1742336735181,0.1845619,82413.0,82412.0,0.18264]
[1742336735383,0.2169619,82413.0,82412.0,0.3040033]
[1742336737782,0.2169619,82413.0,82412.0,0.0638]
[1742336737987,0.2169619,82413.0,82412.0,0.031]
[1742336738181,0.1213678,82409.0,82408.0,0.031]
[1742336738502,0.121381,82400.0,82390.0,0.12343788]
[1742336738784,0.121384,82398.0,82397.0,0.031]
[1742336739087,0.1213913,82393.0,82392.0,0.1538915]
[1742336739377,0.1213913,82393.0,82392.0,0.0325]
[1742336739579,0.1538913,82393.0,82392.0,0.0325]
[1742336739779,0.5146913,82393.0,82392.0,0.0325]
[1742336740488,0.5471913,82393.0,82392.0,0.0325]
[1742336740870,0.1213928,82392.0,82391.0,0.00018215]
[1742336741274,0.1863928,82392.0,82391.0,0.00018215]
[1742336741580,0.1214031,82385.0,82384.0,0.21660016]
[1742336741783,0.6013231,82385.0,82384.0,0.21660016]
[1742336742086,0.6985231,82385.0,82384.0,0.21660016]
[1742336743279,0.121412,82379.0,82378.0,0.0313]
[1742336743583,0.121412,82379.0,82378.0,0.0626]
[1742336743584,0.601732,82379.0,82378.0,0.0626]
[1742336743776,0.665132,82379.0,82378.0,0.0626]
[1742336744177,0.664132,82379.0,82378.0,0.0626]
[1742336744991,0.668132,82379.0,82378.0,0.0626]
[1742336745295,0.485212,82379.0,82378.0,0.1840134]
[1742336745592,0.485212,82379.0,82378.0,0.2158134]
[1742336745789,0.488212,82379.0,82378.0,0.2158134]
[1742336746379,0.127412,82379.0,82378.0,0.2158134]
[1742336747782,0.127412,82379.0,82378.0,0.0944]
[1742336747977,0.127412,82379.0,82378.0,0.2158134]
[1742336752596,0.127412,82379.0,82378.0,0.1840134]
[1742336752796,0.191612,82379.0,82378.0,0.1840134]
[1742336752990,0.191612,82379.0,82378.0,0.0626]
[1742336754192,0.191612,82379.0,82378.0,0.1840134]
[1742336754398,0.159512,82379.0,82378.0,0.1840134]
[1742336757590,0.190812,82379.0,82378.0,0.1840134]
[1742336758194,0.190812,82379.0,82378.0,0.0626]
[1742336758396,0.190812,82379.0,82378.0,0.1840134]
[1742336759701,0.190812,82379.0,82378.0,0.0626]
[1742336761495,0.310092,82379.0,82378.0,0.0626]
[1742336761690,0.1214149,82377.0,82376.0,0.00018202]
[1742336762089,0.1846149,82377.0,82376.0,0.00018202]
[1742336762699,0.1214149,82377.0,82376.0,0.12159842]
[1742336763098,0.1254149,82377.0,82376.0,0.15299842]
[1742336763692,0.1284149,82377.0,82376.0,0.15299842]
[1742336764294,0.1254149,82377.0,82376.0,0.15299842]
[1742336764495,0.1234149,82377.0,82376.0,0.15299842]
[1742336764904,0.1234149,82377.0,82376.0,0.21659842]
[1742336765104,0.002,82377.0,82376.0,0.21659842]
[1742336765302,0.0606993,82388.0,82376.0,0.09518202]
[1742336765509,0.1821041,82387.0,82386.0,0.1214016]
[1742336765705,0.1821041,82387.0,82386.0,0.1850016]
[1742336765904,0.1821041,82387.0,82386.0,0.0636]
[1742336766406,0.1821041,82387.0,82386.0,0.1850016]
[1742336767098,0.1841041,82387.0,82386.0,0.1850016]
[1742336767800,0.1861041,82387.0,82386.0,0.1850016]
[1742336768402,0.004,82387.0,82386.0,0.1850016]
[1742336771111,0.00018202,82393.0,82392.0,0.1213928]
[1742336771308,0.060689,82402.0,82401.0,0.1213795]
[1742336771511,0.060689,82402.0,82401.0,0.13283457]
[1742336771708,4e-05,82403.0,82402.0,0.1213781]
[1742336771914,4e-05,82403.0,82402.0,0.1872781]
[1742336772616,0.1214166,82403.0,82402.0,0.1872781]
[1742336772918,0.1213766,82403.0,82402.0,0.1872781]
[1742336775917,0.1213766,82403.0,82402.0,0.0659]
[1742336776111,0.1830766,82403.0,82402.0,0.0659]
[1742336776416,0.2150766,82403.0,82402.0,0.1872781]
[1742336776616,0.1830766,82403.0,82402.0,0.1872781]
[1742336777014,0.1830766,82403.0,82402.0,0.0659]
[1742336779618,0.1830766,82403.0,82402.0,0.1872781]
[1742336779809,0.1830766,82403.0,82402.0,0.0659]
[1742336782520,0.2154766,82403.0,82402.0,0.0659]
[1742336784220,0.1213884,82395.0,82394.0,0.00018202]
[1742336784403,0.4821884,82395.0,82394.0,0.00018202]
[1742336784608,0.5431884,82395.0,82394.0,0.00018202]
[1742336785109,0.5431884,82395.0,82394.0,0.12157192]
[1742336785420,0.5431884,82395.0,82394.0,0.19587339]
[1742336785618,0.5451884,82395.0,82394.0,0.19587339]
[1742336785926,0.5451884,82395.0,82394.0,0.06278202]
[1742336789714,0.5451884,82395.0,82394.0,0.18417192]
[1742336790114,0.5451884,82395.0,82394.0,0.21537192]
[1742336791511,0.1543884,82395.0,82394.0,0.21537192]
[1742336791919,0.1863884,82395.0,82394.0,0.21537192]
[1742336792812,0.1863884,82395.0,82394.0,0.18417192]
[1742336794418,0.1863884,82395.0,82394.0,0.06278202]
[1742336794613,0.1863884,82395.0,82394.0,0.18417192]
[1742336794810,0.5471884,82395.0,82394.0,0.06278202]
[1742336796425,0.5471884,82395.0,82394.0,0.18417192]
[1742336797007,0.1863884,82395.0,82394.0,0.18417192]
[1742336799721,0.1863884,82395.0,82394.0,0.06278202]
[1742336799928,0.1863884,82395.0,82394.0,0.00018202]
[1742336808214,0.5471884,82395.0,82394.0,0.00018202]
[1742336808418,0.5471884,82395.0,82394.0,0.03188202]
[1742336808625,0.1863884,82395.0,82394.0,0.03188202]
[1742336815637,0.21381256,82395.0,82394.0,0.03188202]
[1742336817624,0.1863884,82395.0,82394.0,0.03188202]
[1742336825941,0.1843884,82395.0,82394.0,0.03188202]
[1742336826142,0.1863884,82395.0,82394.0,0.03188202]
[1742336827050,0.5471884,82395.0,82394.0,0.03188202]
[1742336828040,0.57461256,82395.0,82394.0,0.03188202]
[1742336828242,0.57461256,82395.0,82394.0,0.00504969]
[1742336829055,0.57461256,82395.0,82394.0,0.12643959]
[1742336829349,0.21381256,82395.0,82394.0,0.00504969]
[1742336831662,0.1213943,82391.0,82390.0,0.0327]
[1742336831845,0.50961846,82391.0,82390.0,0.0327]
[1742336832042,0.54261846,82391.0,82390.0,0.0327]
[1742336832959,0.5171943,82391.0,82390.0,0.0327]
[1742336833143,0.6676543,82391.0,82390.0,0.0327]
[1742336833341,0.1214002,82387.0,82386.0,0.00018202]
[1742336833553,0.4822002,82387.0,82386.0,0.00018202]
[1742336833746,0.5455002,82387.0,82386.0,0.00018202]
[1742336833956,0.55726316,82387.0,82386.0,0.00018202]
[1742336834154,0.58468732,82387.0,82386.0,0.00018202]
[1742336834558,0.57292436,82387.0,82386.0,0.00018202]
[1742336835257,0.3026202,82387.0,82386.0,0.00018202]
[1742336835555,0.3046202,82387.0,82386.0,0.00018202]
[1742336836355,0.6634202,82387.0,82386.0,0.00018202]
[1742336836549,0.69284436,82387.0,82386.0,0.00018202]
[1742336836756,0.6654202,82387.0,82386.0,0.00018202]
[1742336837245,0.6654202,82387.0,82386.0,0.06408202]
[1742336838857,0.6654202,82387.0,82386.0,0.00018202]
[1742336841263,0.6634202,82387.0,82386.0,0.00018202]
[1742336841444,0.6654202,82387.0,82386.0,0.03168202]
[1742336841859,0.6634202,82387.0,82386.0,0.03168202]
[1742336842160,0.6654202,82387.0,82386.0,0.03168202]
[1742336844257,0.5455002,82387.0,82386.0,0.03168202]
[1742336844453,0.5475002,82387.0,82386.0,0.03168202]
[1742336845251,0.5475002,82387.0,82386.0,0.15308362]
[1742336845445,0.1542002,82387.0,82386.0,0.06378202]
[1742336845858,0.1234002,82387.0,82386.0,0.18518362]
[1742336847348,0.1214002,82387.0,82386.0,0.18518362]
[1742336847665,0.1234002,82387.0,82386.0,0.18518362]
[1742336850657,0.1531002,82387.0,82386.0,0.18518362]
[1742336851361,0.1521002,82387.0,82386.0,0.18518362]
[1742336852059,0.1531002,82387.0,82386.0,0.18518362]
[1742336853566,0.1521002,82387.0,82386.0,0.18518362]
[1742336853767,0.1531002,82387.0,82386.0,0.18518362]
[1742336858071,0.1521002,82387.0,82386.0,0.18518362]
[1742336858269,0.1531002,82387.0,82386.0,0.18518362]
[1742336861167,0.1531002,82387.0,82386.0,0.06378202]
[1742336861464,0.21202436,82387.0,82386.0,0.00018202]
[1742336861669,0.21102436,82387.0,82386.0,2.39e-05]
[1742336861866,0.21202436,82387.0,82386.0,2.39e-05]
[1742336866677,0.57282436,82387.0,82386.0,2.39e-05]
[1742336869363,0.57282436,82387.0,82354.0,0.1214488]
[1742336869364,0.1214355,82363.0,82354.0,0.1214488]
[1742336869566,0.1214355,82363.0,82352.0,0.88176]
[1742336869567,0.4822355,82363.0,82362.0,0.2256238]
[1742336869972,0.54125966,82363.0,82362.0,0.2256238]
[1742336870276,0.5138355,82363.0,82362.0,0.2256238]
[1742336870775,0.5762355,82363.0,82362.0,0.2256238]
[1742336870982,0.5466355,82363.0,82362.0,0.2256238]
[1742336871181,0.1858355,82363.0,82362.0,0.2256238]
[1742336871382,0.1858355,82363.0,82362.0,0.00902364]
[1742336871577,0.1234355,82363.0,82362.0,0.121437]
[1742336871883,0.1234355,82363.0,82362.0,0.239077]
[1742336872082,0.1244355,82363.0,82362.0,0.239077]
[1742336872967,0.1234355,82363.0,82362.0,0.337977]
[1742336874172,0.1214355,82363.0,82362.0,0.337977]
[1742336874482,0.1214355,82363.0,82362.0,0.336977]
[1742336875879,0.1214355,82363.0,82362.0,0.34625572]
[1742336878389,0.1528355,82363.0,82362.0,0.34625572]
[1742336879485,0.1214355,82363.0,82362.0,0.34625572]
[1742336880389,4e-05,82364.0,82363.0,0.1214355]
[1742336880588,0.1214741,82364.0,82363.0,0.1855355]
[1742336880789,0.1214341,82364.0,82363.0,0.0641]
[1742336881184,0.1861341,82364.0,82363.0,0.0641]
[1742336881894,0.1861341,82364.0,82363.0,0.0312]
[1742336882586,0.1543341,82364.0,82363.0,0.1839355]
[1742336882789,0.1543341,82364.0,82363.0,0.2161355]
[1742336882993,0.1214341,82364.0,82363.0,0.2161355]
[1742336883195,0.1214341,82364.0,82363.0,0.3338155]
[1742336883487,0.1244341,82364.0,82363.0,0.3338155]
[1742336884490,0.1576341,82364.0,82363.0,0.3338155]
[1742336884982,0.1876341,82364.0,82363.0,0.21238]
[1742336885181,0.1876341,82364.0,82363.0,0.18018]
[1742336886684,0.1876341,82364.0,82363.0,0.0625]
[1742336887288,0.1576341,82364.0,82363.0,0.1839355]
[1742336887493,0.1244341,82364.0,82363.0,0.1839355]
[1742336888490,0.1551341,82364.0,82363.0,0.1839355]
[1742336889102,0.1234341,82364.0,82363.0,0.1839355]
[1742336889609,0.1234341,82364.0,82363.0,0.3016155]
[1742336889804,0.1224341,82364.0,82363.0,0.3016155]
[1742336890404,0.1214341,82364.0,82363.0,0.3016155]
[1742336890708,0.121473,82365.0,82364.0,0.1214341]
[1742336890900,0.121473,82365.0,82364.0,0.1867341]
[1742336891901,0.12160682,82371.0,82369.0,0.0607132]
[1742336892112,0.12160682,82371.0,82370.0,0.3372052]
[1742336892709,0.15230682,82371.0,82370.0,0.3372052]
[1742336893213,0.15330682,82371.0,82370.0,0.3372052]
[1742336894001,0.15430682,82371.0,82370.0,0.3372052]
[1742336894601,0.15330682,82371.0,82370.0,0.3382052]
[1742336895008,0.18570682,82371.0,82370.0,0.3382052]
[1742336895807,0.18470682,82371.0,82370.0,0.3392052]
[1742336896516,0.18470682,82371.0,82370.0,0.3382052]
[1742336896815,0.15230682,82371.0,82370.0,0.3382052]
[1742336897205,0.18470682,82371.0,82370.0,0.3372052]
[1742336900299,0.18470682,82371.0,82370.0,0.2195252]
[1742336900513,0.18470682,82371.0,82364.0,0.11768]
[1742336900514,0.1214355,82363.0,82362.0,0.12695872]
[1742336900815,0.1214385,82361.0,82360.0,0.1874391]
[1742336901205,0.1844385,82361.0,82360.0,0.1874391]
[1742336901412,0.1844385,82361.0,82360.0,0.3051191]
[1742336901605,0.1844385,82361.0,82360.0,0.1214391]
[1742336902116,0.1844385,82361.0,82360.0,0.1555391]
[1742336902620,0.1854385,82361.0,82360.0,0.16470272]
[1742336902814,0.1854385,82361.0,82360.0,0.16370272]
[1742336903011,0.1864385,82361.0,82360.0,0.16370272]
[1742336905120,0.1854385,82361.0,82360.0,0.16370272]
[1742336905310,0.1864385,82361.0,82360.0,0.16370272]
[1742336905511,0.1854385,82361.0,82360.0,0.16370272]
[1742336905710,0.1864385,82361.0,82360.0,0.16370272]
[1742336905913,0.1854385,82361.0,82360.0,0.16370272]
[1742336906213,0.1563385,82361.0,82360.0,0.16370272]
[1742336906420,0.1234385,82361.0,82360.0,0.22600272]
[1742336906809,0.1538385,82361.0,82360.0,0.22600272]
[1742336907612,0.1528385,82361.0,82360.0,0.22600272]
[1742336907820,0.1538385,82361.0,82360.0,0.22600272]
[1742336908414,0.1844385,82361.0,82360.0,0.22600272]
[1742336910724,0.1844385,82361.0,82360.0,0.10456362]
[1742336910927,0.1844385,82361.0,82360.0,0.07366362]
[1742336911118,0.2163385,82361.0,82360.0,0.04226362]
[1742336911422,0.2163385,82361.0,82360.0,0.00916362]
[1742336911618,0.2163385,82361.0,82355.0,0.11768]
[1742336911619,0.1214459,82356.0,82355.0,0.0319]
[1742336911825,0.1214459,82356.0,82350.0,0.21660016]
[1742336911826,0.1214532,82351.0,82350.0,0.21660016]
[1742336912513,0.2159532,82351.0,82350.0,0.21660016]
[1742336912913,0.24559507,82351.0,82350.0,0.21660016]
[1742336913526,0.36327507,82351.0,82350.0,0.21660016]
[1742336913723,0.3336332,82351.0,82350.0,0.21660016]
[1742336914121,0.36327507,82351.0,82350.0,0.21660016]
[1742336914726,0.1214606,82346.0,82345.0,0.28880022]
[1742336914927,0.4822606,82346.0,82345.0,0.28880022]
[1742336915127,0.5448606,82346.0,82345.0,0.28880022]
[1742336915328,0.121465,82343.0,82342.0,0.00018214]
[1742336915830,0.184065,82343.0,82342.0,0.00018214]
[1742336916021,0.21370687,82343.0,82342.0,0.00018214]
[1742336916535,0.184065,82343.0,82342.0,0.00018214]
[1742336916830,0.21370687,82343.0,82342.0,0.00018214]
[1742336917213,0.19612171,82343.0,82342.0,0.00018214]
[1742336917417,0.1214739,82337.0,82336.0,0.0302]
[1742336917627,0.1214783,82334.0,82333.0,0.01195947]
[1742336917821,0.1214783,82334.0,82331.0,1.24424]
[1742336917822,0.1214798,82333.0,82332.0,0.0302]
[1742336918129,0.1848798,82333.0,82332.0,0.0302]
[1742336918831,0.1214813,82332.0,82331.0,0.1230427]
[1742336919026,0.1214813,82332.0,82331.0,0.1214827]
[1742336919227,0.1539813,82332.0,82331.0,0.1214827]
[1742336920230,0.1539813,82332.0,82331.0,0.1544827]
[1742336925229,0.1867813,82332.0,82331.0,0.1544827]
[1742336929332,0.1867813,82332.0,82331.0,0.033]
[1742336929720,0.1972915,82332.0,82331.0,0.033]
[1742336929925,0.0607441,82328.0,82324.0,0.00018214]
[1742336930220,0.1214916,82325.0,82324.0,0.13078241]
[1742336930537,0.1320018,82325.0,82324.0,0.13078241]
[1742336930727,0.1824916,82325.0,82324.0,0.13078241]
[1742336931442,0.1824916,82325.0,82324.0,0.14499185]
[1742336931741,0.1824916,82325.0,82324.0,0.14699185]
[1742336933133,0.1824916,82325.0,82324.0,0.17889185]
[1742336935138,0.1214916,82325.0,82324.0,0.17689185]
[1742336935332,0.0607443,82327.0,82326.0,0.1214901]
[1742336935836,0.0607443,82327.0,82326.0,0.1842901]
[1742336936334,4e-05,82328.0,82327.0,0.1214886]
[1742336936335,0.1215277,82328.0,82327.0,0.1214886]
[1742336936536,4e-05,82328.0,82327.0,0.1214886]
[1742336936731,0.121486,82329.0,82328.0,0.1214872]
[1742336936922,0.121486,82329.0,82328.0,0.1863872]
[1742336937127,0.121526,82329.0,82328.0,0.1863872]
[1742336937734,0.185226,82329.0,82328.0,0.1863872]
[1742336938228,0.185226,82329.0,82328.0,0.0649]
[1742336938829,0.195912,82329.0,82328.0,0.0659]
[1742336939246,0.22717733,82329.0,82328.0,0.0659]
[1742336939741,0.22717733,82329.0,82328.0,0.001]
[1742336940036,0.1214901,82326.0,82325.0,0.02531806]
[1742336940228,0.19604143,82326.0,82325.0,0.02531806]
[1742336940425,0.22864143,82326.0,82325.0,0.00143617]
[1742336940628,0.1214916,82325.0,82324.0,0.00928961]
[1742336940842,0.15275693,82325.0,82324.0,0.00928961]
[1742336941040,0.21795693,82325.0,82324.0,0.00928961]
[1742336941241,0.21695693,82325.0,82324.0,0.00928961]
[1742336942241,0.21695693,82325.0,82324.0,0.01128961]
[1742336942435,0.1856916,82325.0,82324.0,0.01128961]
[1742336943035,0.1846916,82325.0,82324.0,0.01128961]
[1742336943430,0.1846916,82325.0,82324.0,0.00218214]
[1742336944033,0.1846916,82325.0,82324.0,0.00418214]
[1742336944540,0.21595693,82325.0,82324.0,0.00418214]
[1742336945137,0.1846916,82325.0,82324.0,0.00418214]
[1742336945440,0.21595693,82325.0,82324.0,0.00418214]
[1742336946344,0.182261,82315.0,82314.0,0.1215067]
[1742336946541,0.543061,82315.0,82314.0,0.1215067]
[1742336946845,0.1215108,82312.0,82311.0,1.00128]
[1742336947049,0.1215108,82312.0,82311.0,1.13288755]
[1742336947248,0.1833108,82312.0,82311.0,1.01137525]
[1742336947650,0.1833108,82312.0,82311.0,1.04367525]
[1742336947942,0.1833108,82312.0,82311.0,1.16518755]
[1742336948337,0.1833108,82312.0,82311.0,1.04367525]
[1742336948537,0.1793108,82312.0,82311.0,1.04367525]
[1742336948745,0.1793108,82312.0,82311.0,0.01165525]
[1742336948951,0.1215226,82304.0,82302.0,0.1521255]
[1742336949244,0.4823226,82304.0,82303.0,0.03248214]
[1742336949443,0.5406226,82304.0,82303.0,0.06308214]
[1742336949854,0.5406226,82304.0,82303.0,0.18460624]
[1742336950356,0.5376226,82304.0,82303.0,0.19060624]
[1742336950852,0.5386226,82304.0,82303.0,0.19360624]
[1742336951053,0.5386226,82304.0,82303.0,0.20544272]
[1742336951550,0.4833226,82304.0,82303.0,0.21441452]
[1742336951746,0.1225226,82304.0,82303.0,0.21441452]
[1742336951952,0.1846226,82304.0,82303.0,0.21441452]
[1742336952367,0.0631,82304.0,82303.0,0.21441452]
[1742336952648,0.1846226,82304.0,82303.0,0.21441452]
[1742336952950,0.1846226,82304.0,82303.0,0.21041452]
[1742336953546,0.1846226,82304.0,82303.0,0.20841452]
[1742336953747,0.1846226,82304.0,82303.0,0.20941452]
[1742336954148,0.1836226,82304.0,82303.0,0.20641452]
[1742336954651,0.0621,82304.0,82303.0,0.20641452]
[1742336955253,0.1836226,82304.0,82303.0,0.20641452]
[1742336956354,0.1836226,82304.0,82303.0,0.08489042]
[1742336956544,0.2147226,82304.0,82303.0,0.02199042]
[1742336958652,0.2147226,82304.0,82303.0,0.14351452]
[1742336959354,0.2147226,82304.0,82303.0,0.02199042]
[1742336960342,0.2147226,82304.0,82303.0,0.01015394]
[1742336960542,0.2147226,82304.0,82303.0,0.00118214]
[1742336962257,0.5775226,82304.0,82303.0,0.00018214]
[1742336963043,0.5815226,82304.0,82303.0,0.00018214]
[1742336969855,0.2207226,82304.0,82303.0,0.00018214]
[1742336970054,0.5815226,82304.0,82303.0,0.00018214]
[1742336970953,0.5785226,82304.0,82303.0,0.00018214]
[1742336971150,0.5815226,82304.0,82303.0,0.00018214]
[1742336974660,0.6455226,82304.0,82303.0,0.00018214]
[1742336975274,0.7632826,82304.0,82303.0,0.00018214]
[1742336976264,0.7602826,82304.0,82303.0,0.00018214]
[1742336976459,0.7632826,82304.0,82303.0,0.00018214]
[1742336981376,0.4024826,82304.0,82303.0,0.00018214]
[1742336981575,0.7632826,82304.0,82303.0,0.00018214]
[1742336983078,0.79454793,82304.0,82303.0,0.00018214]
[1742336983469,0.7632826,82304.0,82303.0,0.00018214]
[1742336983666,0.79454793,82304.0,82303.0,0.00018214]
[1742336984374,0.79154793,82304.0,82303.0,0.00018214]
[1742336984678,0.79454793,82304.0,82303.0,0.00018214]
[1742336985979,0.79154793,82304.0,82303.0,0.00018214]
[1742336986166,0.79454793,82304.0,82303.0,0.00018214]
[1742336986981,0.79454793,82304.0,82303.0,0.03078214]
[1742336987177,0.79554793,82304.0,82303.0,0.03078214]
[1742336987383,0.79254793,82304.0,82303.0,0.03078214]
[1742336987582,0.79554793,82304.0,82303.0,0.03078214]
[1742336989074,0.79654793,82304.0,82303.0,0.03078214]
[1742336990973,0.0607629,82302.0,82300.0,0.1]
[1742336991172,0.21849233,82301.0,82300.0,0.1]
[1742336992384,0.22149233,82301.0,82300.0,0.1]
[1742336992791,0.58229233,82301.0,82300.0,0.1]
[1742336992980,0.58529233,82301.0,82300.0,0.1]
[1742336994683,0.58529233,82301.0,82300.0,0.133]
[1742336996792,0.554027,82301.0,82300.0,0.133]
[1742336996991,0.554027,82301.0,82300.0,0.1]
[1742336997993,0.310947,82301.0,82300.0,0.2215285]
[1742336998197,0.310947,82301.0,82300.0,0.2522285]
[1742336998886,0.310947,82301.0,82300.0,0.2802285]
[1742337000198,0.193227,82301.0,82300.0,0.2802285]
[1742337000488,0.127527,82301.0,82300.0,0.2802285]
[1742337000696,0.190727,82301.0,82300.0,0.2802285]
[1742337006100,0.22199233,82301.0,82300.0,0.2802285]
[1742337009004,0.22199233,82301.0,82300.0,0.1587]
[1742337010800,0.22199233,82301.0,82300.0,0.2802285]
[1742337011704,0.190727,82301.0,82300.0,0.2802285]
[1742337012008,0.159827,82301.0,82300.0,0.2802285]
[1742337012411,0.190027,82301.0,82300.0,0.2802285]
[1742337012796,0.187027,82301.0,82300.0,0.2802285]
[1742337012996,0.184027,82301.0,82300.0,0.2812285]
[1742337013609,0.184027,82301.0,82300.0,0.2822285]
[1742337013799,0.184027,82301.0,82300.0,0.2832285]
[1742337015297,0.0625,82301.0,82300.0,0.2832285]
[1742337015900,0.184027,82301.0,82300.0,0.2832285]
[1742337017001,0.184027,82301.0,82300.0,0.2812285]
[1742337017204,0.184027,82301.0,82300.0,0.2832285]
[1742337018404,0.0625,82301.0,82300.0,0.2832285]
[1742337019007,0.184027,82301.0,82300.0,0.2832285]
[1742337021106,0.0625,82301.0,82300.0,0.2832285]
[1742337025114,4e-05,82302.0,82301.0,0.121527]
[1742337025606,4e-05,82302.0,82301.0,0.180127]
[1742337026220,0.1215656,82302.0,82301.0,0.181127]
[1742337026419,0.1215656,82302.0,82301.0,0.182127]
[1742337028317,0.1836656,82302.0,82301.0,0.182127]
[1742337028612,0.1836656,82302.0,82301.0,0.123527]
[1742337028816,0.1836656,82302.0,82301.0,0.11972]
[1742337029007,0.1836656,82302.0,82301.0,0.002]
[1742337029212,0.21493093,82302.0,82301.0,0.002]
[1742337029825,0.22702509,82302.0,82301.0,0.002]
[1742337030018,0.121527,82301.0,82300.0,0.1]
[1742337030225,0.18299233,82301.0,82300.0,0.1]
[1742337030522,0.24509233,82301.0,82300.0,0.1]
[1742337031418,0.213827,82301.0,82300.0,0.1]
[1742337031919,0.213827,82301.0,82300.0,0.2215285]
[1742337032314,0.213827,82301.0,82300.0,0.1]
[1742337032513,0.219827,82301.0,82300.0,0.1]
[1742337033325,0.218827,82301.0,82300.0,0.1]
[1742337033813,0.215827,82301.0,82300.0,0.1]
[1742337034014,0.217827,82301.0,82300.0,0.1]
[1742337034523,0.218827,82301.0,82300.0,0.1]
[1742337035625,0.218827,82301.0,82292.0,0.00010779]
[1742337035626,0.1215388,82293.0,82292.0,0.00010779]
[1742337035923,0.1215388,82293.0,82276.0,0.28880022]
[1742337035924,0.1215625,82277.0,82276.0,0.28880022]
[1742337036125,0.4823625,82277.0,82276.0,0.41036422]
[1742337036515,0.5458625,82277.0,82276.0,0.41036422]
[1742337036824,0.5458625,82277.0,82276.0,0.29806866]
[1742337037032,0.9066625,82277.0,82276.0,0.28880022]
[1742337037322,0.1215728,82270.0,82262.0,1.31732033]
[1742337037526,0.4823728,82270.0,82266.0,0.01187674]
[1742337037733,0.4823728,82270.0,82262.0,0.43320033]
[1742337038025,0.1215832,82263.0,82262.0,0.43320033]
[1742337038217,0.6001032,82263.0,82262.0,0.43320033]
[1742337038416,0.6001032,82263.0,82253.0,0.59135001]
[1742337038417,0.1215846,82262.0,82261.0,0.21717303]
[1742337038823,0.1540846,82262.0,82261.0,0.21717303]
[1742337040624,0.1843846,82262.0,82261.0,0.21717303]
[1742337041030,0.1903846,82262.0,82261.0,0.21717303]
[1742337042025,0.1903846,82262.0,82261.0,0.33875913]
[1742337042419,0.1873846,82262.0,82261.0,0.36895913]
[1742337042619,0.0678,82262.0,82261.0,0.40045913]
[1742337042828,0.0678,82262.0,82261.0,0.1832861]
[1742337043035,0.1893846,82262.0,82261.0,0.1832861]
[1742337043233,0.1843846,82262.0,82261.0,0.1832861]
[1742337043423,0.1873846,82262.0,82261.0,0.1832861]
[1742337044029,0.1853846,82262.0,82261.0,0.1832861]
[1742337044334,0.1540846,82262.0,82261.0,0.1842861]
[1742337044836,0.1870846,82262.0,82261.0,0.1842861]
[1742337046433,0.1870846,82262.0,82261.0,0.1832861]
[1742337046633,0.1870846,82262.0,82261.0,0.1842861]
[1742337047336,0.1870846,82262.0,82261.0,0.1832861]
[1742337047517,0.1870846,82262.0,82261.0,0.1842861]
[1742337047722,0.0325,82262.0,82261.0,0.1842861]
[1742337050038,0.0932882,82268.0,82267.0,0.1215773]
[1742337050039,0.0607882,82268.0,82267.0,0.1215773]
[1742337050532,0.0324,82269.0,82261.0,0.001]
[1742337050533,0.1216232,82263.0,82261.0,0.001]
[1742337050738,0.1539846,82262.0,82261.0,0.2403461]
[1742337050927,0.1854846,82262.0,82261.0,0.2403461]
[1742337051127,0.1854846,82262.0,82261.0,0.2393461]
[1742337051741,0.1854846,82262.0,82261.0,0.1215861]
[1742337053032,0.1854846,82262.0,82261.0,0.1545861]
[1742337053231,0.1854846,82262.0,82261.0,0.033]
[1742337053839,0.1874846,82262.0,82261.0,0.033]